bitfinex/quotes_BTCUSD_20250422
["timestamp","ask_amount","ask_price","bid_price","bid_amount"]
[1745349839514,0.00131226,91530.0,91529.0,1.07257744]
[1745349840013,0.00431226,91530.0,91529.0,1.07257744]
[1745349840964,1e-08,91530.0,91529.0,1.08711829]
[1745349841183,0.0008486,91533.0,91529.0,1.08711829]
[1745349841184,1e-08,91535.0,91533.0,0.35454085]
[1745349841402,1e-08,91535.0,91534.0,0.62233347]
[1745349841634,1e-08,91535.0,91534.0,0.71932542]
[1745349842537,1e-08,91535.0,91534.0,1.08518994]
[1745349842750,0.00200001,91535.0,91534.0,1.08518994]
[1745349843363,1e-08,91535.0,91534.0,1.08518994]
[1745349843594,1e-08,91535.0,91534.0,0.98710994]
[1745349843796,1e-08,91535.0,91534.0,1.08518994]
[1745349843933,0.00200001,91535.0,91534.0,1.08518994]
[1745349846277,0.0008476,91566.0,91558.0,0.15290853]
[1745349846278,0.0482,91561.0,91558.0,0.15290853]
[1745349846487,1e-08,91559.0,91558.0,1.08623663]
[1745349846677,1e-08,91559.0,91558.0,1.08514984]
[1745349848517,1e-08,91559.0,91558.0,1.11857504]
[1745349849142,1e-08,91559.0,91558.0,1.11957504]
[1745349849545,1e-08,91559.0,91558.0,1.08614984]
[1745349852075,1e-08,91559.0,91558.0,1.08514984]
[1745349856437,1e-08,91559.0,91558.0,1.08714984]
[1745349856823,1e-08,91559.0,91558.0,1.08514984]
[1745349857033,1e-08,91559.0,91558.0,0.98706984]
[1745349857247,0.0482,91575.0,91574.0,0.15288182]
[1745349858515,0.0522,91575.0,91574.0,0.15302102]
[1745349858719,0.0562,91575.0,91574.0,0.16368119]
[1745349858910,0.0602,91575.0,91574.0,0.16368119]
[1745349859301,0.0562,91575.0,91574.0,0.16368119]
[1745349859597,0.0602,91575.0,91574.0,0.16368119]
[1745349861203,0.0602,91575.0,91574.0,0.16476762]
[1745349861612,0.012,91575.0,91574.0,0.16476762]
[1745349863207,0.008,91575.0,91574.0,0.16476762]
[1745349863447,0.009,91575.0,91574.0,0.16476762]
[1745349863649,0.001,91575.0,91574.0,0.53063214]
[1745349863855,0.001,91575.0,91574.0,0.52954571]
[1745349864066,0.003,91575.0,91574.0,0.52954571]
[1745349864220,0.001,91575.0,91574.0,0.52954571]
[1745349864619,0.004,91575.0,91574.0,0.52954571]
[1745349865077,0.0482,91584.0,91575.0,0.15288015]
[1745349865321,0.0482,91584.0,91575.0,0.51983075]
[1745349865496,0.0482,91584.0,91575.0,0.63250061]
[1745349866876,0.0038486,91576.0,91575.0,0.63250061]
[1745349867340,0.0068486,91576.0,91575.0,0.63250061]
[1745349867711,0.00276777,91576.0,91575.0,0.63250061]
[1745349867921,0.00476777,91576.0,91575.0,0.63250061]
[1745349868093,0.002,91576.0,91575.0,0.63250061]
[1745349868293,0.004,91576.0,91575.0,0.63250061]
[1745349868507,0.004,91576.0,91575.0,0.64704146]
[1745349868712,0.002,91576.0,91575.0,0.64704146]
[1745349869937,0.004,91576.0,91575.0,0.64704146]
[1745349870282,0.002,91576.0,91575.0,0.64704146]
[1745349870458,0.004,91576.0,91575.0,0.44083251]
[1745349870659,0.002,91576.0,91575.0,0.59371266]
[1745349871371,0.003,91576.0,91575.0,0.59371266]
[1745349871578,0.003,91576.0,91575.0,0.46541587]
[1745349871786,0.002,91576.0,91575.0,0.31253572]
[1745349871953,0.048,91576.0,91575.0,0.46541587]
[1745349872166,0.049,91576.0,91575.0,0.46541587]
[1745349875624,0.049,91576.0,91575.0,0.31253572]
[1745349878143,0.049,91576.0,91575.0,0.46541587]
[1745349879167,0.049,91576.0,91575.0,0.31253572]
[1745349883448,0.0945,91576.0,91575.0,0.31253572]
[1745349884469,0.049,91576.0,91575.0,0.31253572]
[1745349885303,0.049,91576.0,91575.0,0.46541587]
[1745349896749,0.003,91576.0,91575.0,0.46541587]
[1745349900243,0.003,91576.0,91575.0,0.93371266]
[1745349902328,0.002,91576.0,91575.0,0.93371266]
[1745349902567,0.003,91576.0,91575.0,0.93371266]
[1745349903206,0.002,91576.0,91575.0,0.93371266]
[1745349903413,0.004,91576.0,91575.0,0.93371266]
[1745349905416,0.005,91589.0,91588.0,0.15285845]
[1745349905852,0.005,91589.0,91588.0,0.24757845]
[1745349906938,0.01,91589.0,91588.0,0.24757845]
[1745349907349,0.015,91589.0,91588.0,0.24857845]
[1745349907928,0.015,91589.0,91588.0,0.09572]
[1745349908216,0.015,91589.0,91588.0,0.24857845]
[1745349910890,0.015,91589.0,91588.0,0.09572]
[1745349911435,0.015,91589.0,91588.0,0.24857845]
[1745349913196,0.015,91589.0,91588.0,0.09572]
[1745349914760,0.015,91589.0,91588.0,0.001]
[1745349916946,0.015,91589.0,91588.0,0.15385845]
[1745349917445,0.015,91589.0,91588.0,0.001]
[1745349918435,0.015,91589.0,91588.0,0.15385845]
[1745349920524,0.109,91589.0,91588.0,0.001]
[1745349930420,0.33009652,91589.0,91588.0,0.001]
[1745349930611,0.32736683,91589.0,91588.0,0.001]
[1745349931160,0.01091917,91582.0,91574.0,0.0001392]
[1745349931383,0.0498,91583.0,91574.0,0.0001392]
[1745349932423,0.00572982,91582.0,91574.0,0.0001392]
[1745349932642,0.00544342,91582.0,91574.0,0.0001392]
[1745349932842,0.26818829,91580.0,91574.0,0.0001392]
[1745349932957,0.00244354,91579.0,91574.0,0.0001392]
[1745349933198,0.0498,91578.0,91574.0,0.0001392]
[1745349933422,0.0969,91575.0,91574.0,0.0001392]
[1745349933636,0.09934376,91575.0,91574.0,0.0001392]
[1745349935924,0.10434376,91575.0,91574.0,0.0011392]
[1745349936124,0.1019,91575.0,91574.0,0.0011392]
[1745349936752,0.1069,91575.0,91574.0,0.0011392]
[1745349938577,0.0598,91575.0,91574.0,0.0011392]
[1745349944556,0.0598,91575.0,91574.0,0.15402102]
[1745349944936,0.01,91575.0,91574.0,0.15402102]
[1745349945163,0.01,91575.0,91574.0,0.1562048]
[1745349945723,0.005,91575.0,91574.0,0.1562048]
[1745349945942,0.002,91575.0,91574.0,0.1552048]
[1745349946174,0.002,91575.0,91574.0,0.0001392]
[1745349946390,0.005,91575.0,91574.0,0.0011392]
[1745349949691,0.005,91575.0,91574.0,0.15402102]
[1745349951774,0.005,91575.0,91574.0,0.0011392]
[1745349953424,0.005,91575.0,91574.0,0.15402102]
[1745349964540,0.005,91575.0,91574.0,0.26777696]
[1745349966340,0.005,91575.0,91574.0,0.60777696]
[1745349966548,0.003,91575.0,91574.0,0.60777696]
[1745349966754,0.0498,91588.0,91587.0,0.15286012]
[1745349967159,0.0498,91588.0,91587.0,0.15258462]
[1745349969021,0.0538,91588.0,91587.0,0.15358462]
[1745349969224,0.0568,91588.0,91587.0,0.15358462]
[1745349969819,0.0568,91588.0,91586.0,0.15286179]
[1745349970022,0.0568,91588.0,91587.0,0.15286012]
[1745349970923,0.0568,91588.0,91586.0,0.15286179]
[1745349970924,0.007,91588.0,91586.0,0.043397]
[1745349971127,0.004,91588.0,91586.0,0.043397]
[1745349971362,0.006,91588.0,91587.0,0.15286012]
[1745349971763,0.0485,91586.0,91574.0,0.15302078]
[1745349971995,0.0485,91586.0,91574.0,0.0001392]
[1745349971996,0.05262966,91585.0,91574.0,0.0001392]
[1745349972601,0.05162966,91585.0,91576.0,0.15287848]
[1745349972807,0.05162966,91585.0,91575.0,0.15288015]
[1745349972969,0.05162966,91585.0,91574.0,0.0001392]
[1745349973178,0.05662966,91585.0,91574.0,0.0011392]
[1745349973382,0.05162966,91585.0,91574.0,0.0001392]
[1745349973891,0.05362966,91585.0,91574.0,0.0001392]
[1745349974186,0.05162966,91585.0,91574.0,0.0001392]
[1745349974981,0.05162966,91585.0,91574.0,0.0011392]
[1745349975474,0.05562966,91585.0,91574.0,0.0011392]
[1745349975832,0.05762966,91585.0,91574.0,0.0011392]
[1745349978589,0.05762966,91585.0,91573.0,0.13104258]
[1745349978788,0.05762966,91585.0,91573.0,0.13118175]
[1745349978997,0.05762966,91585.0,91574.0,0.13104132]
[1745349979208,0.05762966,91585.0,91576.0,0.13103826]
[1745349979603,0.05162966,91585.0,91577.0,0.13103662]
[1745349979798,0.05362966,91585.0,91576.0,0.13103866]
[1745349980004,0.05762966,91585.0,91574.0,0.13104038]
[1745349980321,0.05362966,91585.0,91574.0,0.13104038]
[1745349980643,0.05862966,91585.0,91576.0,0.001]
[1745349981042,0.05662966,91585.0,91576.0,0.001]
[1745349981478,0.05962966,91585.0,91576.0,0.001]
[1745349981928,0.05462966,91585.0,91574.0,0.1310414]
[1745349982145,0.05862966,91585.0,91575.0,0.13103903]
[1745349982903,0.05562966,91585.0,91575.0,0.13103903]
[1745349983315,0.06062966,91585.0,91576.0,0.13203867]
[1745349983550,0.06062966,91585.0,91576.0,0.13103867]
[1745349983551,0.05162966,91585.0,91576.0,0.13103867]
[1745349983957,0.05662966,91585.0,91576.0,0.13103867]
[1745349984125,0.05662966,91585.0,91575.0,0.13203903]
[1745349984334,0.05662966,91585.0,91575.0,0.001]
[1745349984889,0.05862966,91585.0,91575.0,0.001]
[1745349985114,0.05662966,91585.0,91575.0,0.001]
[1745349985575,0.05362966,91585.0,91573.0,0.00013917]
[1745349985974,0.05862966,91585.0,91576.0,0.001]
[1745349986101,0.05362966,91585.0,91573.0,0.00013917]
[1745349986647,0.05562966,91585.0,91575.0,0.13203942]
[1745349986872,0.05162966,91585.0,91575.0,0.13103942]
[1745349987092,0.05562966,91585.0,91575.0,0.13103942]
[1745349988019,0.05762966,91585.0,91573.0,0.00113917]
[1745349988243,0.05562966,91585.0,91573.0,0.00113917]
[1745349988933,0.05162966,91585.0,91573.0,0.00013917]
[1745349989155,0.05762966,91585.0,91575.0,0.001]
[1745349989369,0.05362966,91585.0,91577.0,0.13103594]
[1745349989608,0.05162966,91585.0,91577.0,0.13103594]
[1745349989806,0.05562966,91585.0,91578.0,0.13103554]
[1745349989944,0.05562966,91585.0,91576.0,0.13103846]
[1745349990155,0.05962966,91585.0,91575.0,0.13203962]
[1745349990364,0.05962966,91585.0,91575.0,0.001]
[1745349990570,0.05562966,91585.0,91573.0,0.13118175]
[1745349990820,0.06262966,91585.0,91577.0,0.001]
[1745349991783,0.06062966,91585.0,91577.0,0.001]
[1745349991980,0.05962966,91585.0,91573.0,0.00013917]
[1745349992270,0.05862966,91585.0,91575.0,0.001]
[1745349992658,0.05462966,91585.0,91573.0,0.00013917]
[1745349992861,0.05962966,91585.0,91577.0,0.001]
[1745349993163,0.05962966,91585.0,91573.0,0.00013917]
[1745349993569,0.06362966,91585.0,91575.0,0.001]
[1745349993832,0.05162966,91585.0,91573.0,0.00013917]
[1745349994037,0.05662966,91585.0,91577.0,0.001]
[1745349994242,0.05862966,91585.0,91577.0,0.001]
[1745349994664,0.05662966,91585.0,91577.0,0.001]
[1745349994861,0.05862966,91585.0,91577.0,0.001]
[1745349995176,0.05862966,91585.0,91573.0,0.00013917]
[1745349995177,0.05362966,91585.0,91573.0,0.00013917]
[1745349995391,0.05162966,91585.0,91573.0,0.00013917]
[1745349995586,0.05862966,91585.0,91575.0,0.001]
[1745349995794,0.05862966,91585.0,91573.0,0.00013917]
[1745349996151,0.06362966,91585.0,91577.0,0.001]
[1745349996569,0.05462966,91585.0,91573.0,0.00013917]
[1745349996787,0.05862966,91585.0,91575.0,0.001]
[1745349996948,0.05562966,91585.0,91573.0,0.00013917]
[1745349997164,0.05762966,91585.0,91573.0,0.00013917]
[1745349997379,0.06262966,91585.0,91577.0,0.001]
[1745349997615,0.06062966,91585.0,91577.0,0.001]
[1745349997991,0.06262966,91585.0,91577.0,0.001]
[1745349998405,0.05662966,91585.0,91577.0,0.001]
[1745349998608,0.05462966,91585.0,91573.0,0.00013917]
[1745349998780,0.05862966,91585.0,91575.0,0.001]
[1745349998989,0.05862966,91585.0,91573.0,0.00013917]
[1745349999390,0.01472966,91585.0,91577.0,0.001]
[1745349999625,0.048,91584.0,91573.0,0.00013917]
[1745349999853,0.00272992,91583.0,91575.0,0.001]
[1745350000375,0.048,91582.0,91575.0,0.001]
[1745350000592,0.00272992,91581.0,91575.0,0.001]
[1745350000700,0.048,91580.0,91573.0,0.00013917]
[1745350000926,0.00273004,91579.0,91573.0,0.00013917]
[1745350002058,0.00273004,91579.0,91577.0,0.001]
[1745350002286,0.00273004,91579.0,91573.0,0.00013917]
[1745350002777,0.00873004,91579.0,91573.0,0.00113917]
[1745350003030,0.00473004,91579.0,91573.0,0.00013917]
[1745350003217,0.00473004,91579.0,91577.0,0.001]
[1745350003350,0.00973004,91579.0,91577.0,0.001]
[1745350003587,0.00973004,91579.0,91573.0,0.00013917]
[1745350003794,0.01373004,91579.0,91573.0,0.00113917]
[1745350004130,0.01173004,91579.0,91573.0,0.00113917]
[1745350004346,0.01473004,91579.0,91573.0,0.00113917]
[1745350004889,0.01173004,91579.0,91573.0,0.00113917]
[1745350005005,0.00473004,91579.0,91573.0,0.00013917]
[1745350005236,0.00473004,91579.0,91577.0,0.001]
[1745350005489,0.00973004,91579.0,91577.0,0.001]
[1745350005690,0.00473004,91579.0,91573.0,0.00013917]
[1745350005932,0.00873004,91579.0,91573.0,0.00113917]
[1745350006279,0.00873004,91579.0,91573.0,0.00013917]
[1745350006480,0.01373004,91579.0,91577.0,0.001]
[1745350006710,0.2184026,91574.0,91573.0,0.00013917]
[1745350006925,0.42948908,91574.0,91573.0,0.00013917]
[1745350007141,0.42675854,91574.0,91573.0,0.00113917]
[1745350007394,0.52675854,91574.0,91573.0,0.00113917]
[1745350008782,0.53475854,91574.0,91573.0,0.00213917]
[1745350008987,0.53475854,91574.0,91573.0,0.00113917]
[1745350009451,0.2026,91574.0,91573.0,0.00113917]
[1745350010509,0.20533041,91574.0,91573.0,0.00113917]
[1745350011702,0.2026,91574.0,91573.0,0.00113917]
[1745350011833,0.2106,91574.0,91573.0,0.00113917]
[1745350012050,0.21333041,91574.0,91573.0,0.00113917]
[1745350014384,0.43173301,91574.0,91573.0,0.00113917]
[1745350014590,0.4290026,91574.0,91573.0,0.00113917]
[1745350015029,0.54275854,91574.0,91573.0,0.00113917]
[1745350020692,0.53475854,91574.0,91573.0,0.00013917]
[1745350020908,0.52675854,91574.0,91573.0,0.00013917]
[1745350021103,0.54475854,91574.0,91573.0,0.00113917]
[1745350021543,0.0946,91555.0,91539.0,0.4135]
[1745350021693,0.1274094,91554.0,91539.0,0.00013906]
[1745350021896,0.0473,91553.0,91539.0,0.00013906]
[1745350022110,0.1,91546.0,91539.0,0.00013906]
[1745350022298,0.11648729,91545.0,91539.0,0.00013906]
[1745350022978,0.01092382,91543.0,91539.0,0.00013906]
[1745350023179,0.0473,91541.0,91539.0,0.00013906]
[1745350023447,0.00273135,91540.0,91539.0,0.00113906]
[1745350023938,0.00273135,91540.0,91539.0,0.00013906]
[1745350024338,0.00273135,91540.0,91539.0,0.00113906]
[1745350025194,0.00873135,91540.0,91539.0,0.00113906]
[1745350025799,0.01694866,91540.0,91539.0,0.00113906]
[1745350026045,0.01694866,91540.0,91539.0,0.00013906]
[1745350026450,0.02094866,91540.0,91539.0,0.00113906]
[1745350029956,0.1347046,91540.0,91539.0,0.00113906]
[1745350030204,0.1820046,91540.0,91539.0,0.00113906]
[1745350030453,0.2293046,91540.0,91539.0,0.00113906]
[1745350031835,0.44778832,91540.0,91539.0,0.00113906]
[1745350032043,0.44505697,91540.0,91539.0,0.00113906]
[1745350037970,0.22657325,91540.0,91539.0,0.00113906]
[1745350038185,0.4477888,91540.0,91539.0,0.00113906]
[1745350038385,0.22657325,91540.0,91539.0,0.00113906]
[1745350038633,0.22930484,91540.0,91539.0,0.00113906]
[1745350038986,0.18200484,91540.0,91539.0,0.00113906]
[1745350040173,0.0682489,91540.0,91539.0,0.00113906]
[1745350040548,0.01821731,91540.0,91539.0,0.00113906]
[1745350046623,0.01821731,91540.0,91539.0,0.17943072]
[1745350046802,0.01821731,91540.0,91539.0,0.04833906]
[1745350047005,0.01821731,91540.0,91539.0,0.22453072]
[1745350047668,0.01821731,91540.0,91539.0,0.23525495]
[1745350047906,0.01221731,91540.0,91539.0,0.23525495]
[1745350048075,0.01521731,91540.0,91539.0,0.23525495]
[1745350048278,0.01121731,91540.0,91539.0,0.10316329]
[1745350048505,0.00821731,91540.0,91539.0,0.10416329]
[1745350048634,0.01021731,91540.0,91539.0,0.10416329]
[1745350048841,0.00273092,91558.0,91539.0,0.10416329]
[1745350049019,0.00273092,91558.0,91539.0,0.10316329]
[1745350049222,0.002,91540.0,91539.0,0.09443906]
[1745350049652,0.002,91540.0,91539.0,0.09243906]
[1745350049851,0.002,91540.0,91539.0,0.04733906]
[1745350050454,0.00273092,91558.0,91539.0,0.04733906]
[1745350050716,0.003,91540.0,91539.0,0.04933906]
[1745350050880,0.003,91540.0,91539.0,0.04833906]
[1745350051899,0.003,91540.0,91539.0,0.04733906]
[1745350052225,0.003,91540.0,91539.0,0.04833906]
[1745350052447,0.003,91540.0,91539.0,0.00213906]
[1745350055559,0.0113093,91540.0,91539.0,0.00213906]
[1745350055715,0.003,91540.0,91539.0,0.00213906]
[1745350059897,0.01101394,91540.0,91539.0,0.00213906]
[1745350060096,0.003,91540.0,91539.0,0.00213906]
[1745350062119,0.003,91540.0,91532.0,0.4143486]
[1745350062398,0.003,91540.0,91532.0,0.4143947]
[1745350063219,0.003,91540.0,91532.0,0.4173947]
[1745350064279,0.00273107,91548.0,91532.0,0.4173947]
[1745350064573,0.001,91540.0,91532.0,0.4173947]
[1745350065130,0.001,91540.0,91532.0,0.4143947]
[1745350065329,0.001,91540.0,91532.0,0.4173947]
[1745350065994,0.001,91540.0,91532.0,0.4143947]
[1745350066148,0.001,91540.0,91532.0,0.4163947]
[1745350067388,0.00910065,91540.0,91532.0,0.56934632]
[1745350067617,0.00910065,91540.0,91532.0,0.4163947]
[1745350067990,0.00910065,91540.0,91532.0,0.569345]
[1745350068629,0.00910065,91540.0,91532.0,0.4163947]
[1745350068904,0.00910065,91540.0,91533.0,0.15294989]
[1745350069303,0.00910065,91540.0,91534.0,0.15294713]
[1745350069952,0.00910065,91540.0,91533.0,0.15294978]
[1745350071051,0.00810065,91540.0,91533.0,0.15494978]
[1745350071284,0.00273107,91548.0,91533.0,0.15494978]
[1745350071850,0.002,91540.0,91533.0,0.002]
[1745350072053,0.00273107,91548.0,91533.0,0.002]
[1745350072263,0.00273107,91548.0,91532.0,0.56734651]
[1745350072480,0.00473107,91548.0,91533.0,0.002]
[1745350072900,0.00473107,91548.0,91534.0,0.15294699]
[1745350073031,0.00273107,91548.0,91533.0,0.15495]
[1745350074295,0.00273107,91548.0,91535.0,0.15294609]
[1745350074704,0.002,91540.0,91535.0,0.15294609]
[1745350075431,0.00998027,91540.0,91535.0,0.15294609]
[1745350075667,0.00798027,91540.0,91535.0,0.15294609]
[1745350075853,0.00473107,91548.0,91536.0,0.1529452]
[1745350076046,0.00473107,91548.0,91537.0,0.15294321]
[1745350076368,0.002,91540.0,91536.0,0.15294528]
[1745350077940,0.00273107,91548.0,91536.0,0.15294476]
[1745350078141,0.00573107,91548.0,91536.0,0.15294476]
[1745350078354,0.00573107,91548.0,91536.0,0.15494476]
[1745350078863,0.002,91540.0,91538.0,0.1529418]
[1745350079223,0.01012446,91540.0,91538.0,0.1529418]
[1745350079470,0.002,91540.0,91538.0,0.1529418]
[1745350079887,0.002,91540.0,91539.0,0.15294027]
[1745350080725,0.00273107,91548.0,91539.0,0.15294027]
[1745350080937,0.00273107,91548.0,91540.0,0.15293846]
[1745350081147,0.003,91540.0,91539.0,0.15294027]
[1745350081586,0.0113306,91540.0,91539.0,0.31908096]
[1745350081728,0.006,91540.0,91539.0,1.13193706]
[1745350082533,0.006,91540.0,91539.0,1.07039621]
[1745350082748,0.00830524,91541.0,91540.0,0.4929386]
[1745350082965,0.00830524,91541.0,91540.0,0.60669454]
[1745350083189,0.049,91555.0,91548.0,0.15292466]
[1745350084055,0.049,91555.0,91550.0,0.15292102]
[1745350084205,0.049,91555.0,91548.0,0.15292466]
[1745350084560,0.054,91555.0,91548.0,0.001]
[1745350084798,0.005,91555.0,91554.0,0.55665606]
[1745350085036,0.005,91555.0,91554.0,0.49291521]
[1745350085261,0.007,91555.0,91554.0,0.49291521]
[1745350085813,0.049,91568.0,91555.0,0.49291273]
[1745350086021,0.0572488,91568.0,91555.0,0.49291273]
[1745350086240,0.0572488,91568.0,91555.0,0.49291241]
[1745350086686,0.0572488,91568.0,91555.0,0.34]
[1745350086908,0.1057488,91568.0,91554.0,0.002]
[1745350087116,0.049,91566.0,91554.0,0.002]
[1745350087296,0.00273064,91565.0,91549.0,0.09444]
[1745350087544,0.002,91555.0,91554.0,0.001]
[1745350087954,0.00273064,91565.0,91554.0,0.001]
[1745350088371,0.00273064,91565.0,91549.0,0.09444]
[1745350088516,0.00273064,91565.0,91549.0,0.09644]
[1745350088718,0.003,91555.0,91554.0,0.001]
[1745350088923,0.00273064,91565.0,91549.0,0.09644]
[1745350089300,0.00573064,91565.0,91554.0,0.001]
[1745350090541,0.00273064,91565.0,91549.0,0.09444]
[1745350090709,0.00273064,91565.0,91554.0,0.001]
[1745350090936,0.003,91555.0,91554.0,0.002]
[1745350091110,0.0082488,91568.0,91554.0,0.001]
[1745350091317,0.0459,91573.0,91565.0,0.15289668]
[1745350091687,0.1,91580.0,91562.0,0.01092156]
[1745350091894,0.1,91580.0,91560.0,0.01092179]
[1745350091895,0.1,91580.0,91570.0,0.25342224]
[1745350092067,0.1,91580.0,91566.0,0.15289368]
[1745350092324,0.1,91580.0,91567.0,0.00218397]
[1745350092531,0.1,91580.0,91567.0,0.00223007]
[1745350092947,0.003,91573.0,91567.0,0.00223007]
[1745350093517,0.009,91573.0,91567.0,0.00223007]
[1745350093708,0.003,91573.0,91567.0,4.61e-05]
[1745350094138,0.006,91573.0,91567.0,0.15393889]
[1745350094810,0.0538361,91584.0,91567.0,4.61e-05]
[1745350095039,0.003,91573.0,91567.0,4.61e-05]
[1745350095253,0.007,91573.0,91567.0,0.0010461]
[1745350095465,0.007,91573.0,91567.0,4.61e-05]
[1745350095691,0.004,91573.0,91567.0,4.61e-05]
[1745350096349,0.004,91573.0,91564.0,0.01096937]
[1745350096350,0.004,91573.0,91564.0,0.15289851]
[1745350096555,0.004,91573.0,91564.0,0.15302927]
[1745350096760,0.008,91573.0,91567.0,0.001]
[1745350097387,0.009,91573.0,91567.0,0.001]
[1745350098006,0.009,91573.0,91567.0,0.15389298]
[1745350099906,0.009,91573.0,91567.0,0.001]
[1745350104667,0.009,91573.0,91567.0,0.15389193]
[1745350104888,0.009,91573.0,91568.0,0.15289112]
[1745350105465,0.009,91573.0,91568.0,0.1528916]
[1745350105709,0.009,91573.0,91570.0,0.15288837]
[1745350105935,0.009,91573.0,91572.0,0.15288516]
[1745350106237,0.008,91573.0,91572.0,0.28118195]
[1745350106451,0.009,91573.0,91572.0,0.62118195]
[1745350106655,0.001,91573.0,91572.0,0.62118195]
[1745350106891,0.005,91573.0,91572.0,0.62118195]
[1745350107109,0.0008482,91585.0,91582.0,0.15286763]
[1745350107315,0.0008482,91585.0,91580.0,0.15287169]
[1745350107530,0.0008482,91585.0,91582.0,0.15286846]
[1745350107745,0.0008482,91585.0,91583.0,0.15286557]
[1745350107955,0.0008482,91585.0,91582.0,0.15286814]
[1745350108183,0.0008482,91585.0,91582.0,0.15286802]
[1745350108404,0.0038482,91585.0,91583.0,0.15286547]
[1745350108584,0.0038482,91585.0,91584.0,0.15286512]
[1745350108792,0.0038482,91585.0,91583.0,0.15286547]
[1745350109203,0.0038482,91585.0,91584.0,0.15286512]
[1745350109633,0.0008482,91585.0,91584.0,0.15286512]
[1745350109759,0.0018482,91585.0,91584.0,0.15286512]
[1745350109954,0.0068482,91585.0,91584.0,0.15286512]
[1745350110185,0.0008482,91585.0,91583.0,0.15286547]
[1745350110413,0.0028482,91585.0,91583.0,0.15286547]
[1745350110583,0.0088482,91585.0,91584.0,0.001]
[1745350111236,0.0068482,91585.0,91584.0,0.001]
[1745350111420,0.0008482,91585.0,91583.0,0.15286547]
[1745350111623,0.0068482,91585.0,91584.0,0.15286512]
[1745350112433,0.0078482,91585.0,91584.0,0.15286512]
[1745350112931,0.0008482,91585.0,91584.0,0.15286512]
[1745350113131,0.0088482,91585.0,91584.0,0.15386512]
[1745350115534,0.0088482,91585.0,91583.0,0.11484921]
[1745350115871,0.0088482,91585.0,91584.0,0.15286512]
[1745350116516,0.0068482,91585.0,91584.0,0.15286512]
[1745350116765,0.0008482,91585.0,91584.0,0.15286512]
[1745350116976,0.0078482,91585.0,91584.0,0.15286512]
[1745350117392,0.0068482,91585.0,91584.0,0.15386512]
[1745350117643,0.0128482,91585.0,91584.0,0.15386512]
[1745350117877,0.0068482,91585.0,91584.0,0.15286512]
[1745350118096,0.0128482,91585.0,91584.0,0.15386512]
[1745350118523,0.0148482,91585.0,91584.0,0.15386512]
[1745350118952,0.0128482,91585.0,91584.0,0.15386512]
[1745350119379,0.0138482,91585.0,91584.0,0.15386512]
[1745350123769,0.0138482,91585.0,91584.0,0.16500151]
[1745350125023,0.0138482,91585.0,91584.0,0.15386512]
[1745350126531,0.0138482,91585.0,91584.0,0.001]
[1745350126735,0.0018482,91585.0,91584.0,0.15286512]
[1745350126932,0.0018482,91585.0,91584.0,0.15386512]
[1745350127137,0.0078482,91585.0,91584.0,0.15386512]
[1745350128075,0.0068482,91585.0,91584.0,0.15386512]
[1745350128259,0.0088482,91585.0,91584.0,0.15386512]
[1745350137308,0.0561482,91585.0,91584.0,0.001]
[1745350137538,0.10497774,91585.0,91584.0,0.001]
[1745350141753,0.11607437,91585.0,91584.0,0.001]
[1745350145895,0.10497774,91585.0,91584.0,0.001]
[1745350147714,0.10412954,91585.0,91584.0,0.001]
[1745350147923,0.08497774,91585.0,91584.0,0.001]
[1745350153052,0.03887774,91585.0,91584.0,0.001]
[1745350155975,0.41801005,91585.0,91584.0,0.001]
[1745350156197,0.41528051,91585.0,91584.0,0.001]
[1745350156628,0.0935,91567.0,91547.0,0.0944]
[1745350156852,0.00273068,91566.0,91548.0,0.15292366]
[1745350157049,0.11648662,91566.0,91548.0,0.15292366]
[1745350157257,0.11648662,91566.0,91549.0,0.15292269]
[1745350157880,0.11648662,91566.0,91564.0,0.00213076]
[1745350158066,0.12745029,91566.0,91564.0,0.00213076]
[1745350158267,0.11648662,91566.0,91564.0,0.00013076]
[1745350158480,0.11748662,91566.0,91564.0,0.00013076]
[1745350159104,0.12148662,91566.0,91564.0,0.00113076]
[1745350162027,0.005,91566.0,91564.0,0.00113076]
[1745350162289,0.005,91566.0,91564.0,0.15402922]
[1745350162535,0.005,91566.0,91564.0,0.00113076]
[1745350162751,0.005,91566.0,91564.0,0.15402803]
[1745350163502,0.005,91566.0,91565.0,0.15289684]
[1745350163715,0.004,91566.0,91565.0,0.15289684]
[1745350163930,0.00273022,91579.0,91566.0,0.15289481]
[1745350164102,0.01355621,91579.0,91566.0,0.15289481]
[1745350164490,0.01355621,91579.0,91565.0,0.15289684]
[1745350165809,0.003,91566.0,91565.0,0.15389684]
[1745350166252,0.003,91566.0,91565.0,0.001]
[1745350166466,0.003,91566.0,91565.0,0.15389684]
[1745350166657,0.00273022,91579.0,91565.0,0.15289684]
[1745350166783,0.00573022,91579.0,91565.0,0.15389684]
[1745350167234,0.00273022,91579.0,91565.0,0.15289656]
[1745350167451,0.00273022,91579.0,91572.0,0.15288397]
[1745350167669,0.00140608,91584.0,91569.0,0.25318109]
[1745350167912,0.00140608,91584.0,91571.0,0.15288678]
[1745350168399,0.00140608,91584.0,91569.0,0.40607028]
[1745350168784,0.002,91579.0,91567.0,0.152893]
[1745350169211,0.005,91579.0,91570.0,0.15288777]
[1745350169925,0.00273,91583.0,91573.0,0.15288264]
[1745350170127,0.00273,91583.0,91571.0,0.15288683]
[1745350170380,0.003,91579.0,91574.0,0.15288044]
[1745350170596,0.003,91579.0,91572.0,0.15288516]
[1745350170787,0.003,91579.0,91573.0,0.15288282]
[1745350171009,0.008,91579.0,91574.0,0.15288102]
[1745350171375,0.008,91579.0,91575.0,0.15287979]
[1745350171376,0.007,91579.0,91575.0,0.15287979]
[1745350171577,0.009,91579.0,91575.0,0.15287979]
[1745350171974,0.002,91579.0,91573.0,0.15288282]
[1745350172174,0.002,91579.0,91578.0,0.15287514]
[1745350172887,0.007,91579.0,91577.0,0.07050994]
[1745350173091,0.002,91579.0,91577.0,0.07050994]
[1745350173290,0.002,91579.0,91575.0,0.15288015]
[1745350173291,0.00140608,91584.0,91579.0,0.15287199]
[1745350173491,0.006,91579.0,91578.0,0.001]
[1745350173695,0.008,91579.0,91578.0,0.15287459]
[1745350174170,0.011,91579.0,91577.0,0.001]
[1745350174394,0.011,91579.0,91577.0,0.15387654]